fUSD/lending_fUSD_20250105
["ID","MTS","AMOUNT","RATE_DAILY","PERIOD"]
[347741057,1736088657317,-810.01,9.041e-05,2]
[347741058,1736088657327,-500.0,9.041e-05,2]
[347741059,1736088657336,-798.87,9.041e-05,2]
[347741060,1736088657345,-558.05,9.041e-05,2]
[347741061,1736088657355,-1037.16,9.041e-05,2]
[347741062,1736088657365,-500.0,9.041e-05,2]
[347741063,1736088657377,-500.0,9.041e-05,2]
[347741064,1736088657387,-798.02,9.041e-05,2]
[347741065,1736088657396,-500.0,9.041e-05,2]
[347741066,1736088657406,-500.0,9.041e-05,2]
[347741067,1736088657415,-500.0,9.041e-05,2]
[347741068,1736088657425,-626.85,9.041e-05,2]
[347741069,1736088657435,-920.34,9.041e-05,2]
[347741070,1736088657445,-500.0,9.041e-05,2]
[347741071,1736088657457,-734.38,9.041e-05,2]
[347741072,1736088657466,-2241.04,9.041e-05,2]
[347741073,1736088657476,-500.0,9.041e-05,2]
[347741074,1736088657485,-560.28,9.041e-05,2]
[347741075,1736088657494,-500.0,9.041e-05,2]
[347741076,1736088657503,-500.0,9.041e-05,2]
[347741077,1736088657513,-500.0,9.041e-05,2]
[347741078,1736088657522,-500.0,9.041e-05,2]
[347741079,1736088657532,-500.0,9.041e-05,2]
[347741080,1736088657541,-814.44,9.041e-05,2]
[347741081,1736088657551,-603.48,9.041e-05,2]
[347741082,1736088657561,-686.2,9.041e-05,2]
[347741083,1736088657571,-494.62614332,9.041e-05,2]
[347741084,1736088657581,-500.0,9.041e-05,2]
[347741085,1736088657591,-504.64,9.041e-05,2]
[347741086,1736088657601,-500.0,9.041e-05,2]
[347741087,1736088657612,-598.61,9.041e-05,2]
[347741088,1736088657622,-970.15,9.041e-05,2]
[347741089,1736088657632,-500.0,9.041e-05,2]
[347741090,1736088657642,-503.0,9.041e-05,2]
[347741091,1736088657651,-598.92,9.041e-05,2]
[347741092,1736088657661,-870.34,9.041e-05,2]
[347741093,1736088657669,-561.67,9.041e-05,2]
[347741094,1736088657679,-599.13,9.041e-05,2]
[347741095,1736088657688,-577.37,9.041e-05,2]
[347741096,1736088657698,-1374.03,9.041e-05,2]
[347741097,1736088657709,-500.0,9.041e-05,2]
[347741098,1736088657718,-913.29,9.041e-05,2]
[347741099,1736088657728,-1483.17,9.041e-05,2]
[347741100,1736088657738,-607.47,9.041e-05,2]
[347741101,1736088657747,-500.0,9.041e-05,2]
[347741102,1736088657757,-500.0,9.041e-05,2]
[347741103,1736088657767,-543.44,9.041e-05,2]
[347741104,1736088657776,-1286.2,9.041e-05,2]
[347741105,1736088657785,-1384.98,9.041e-05,2]
[347741106,1736088657795,-500.0,9.041e-05,2]
[347741107,1736088657804,-500.0,9.041e-05,2]
[347741108,1736088657813,-515.88,9.041e-05,2]
[347741109,1736088657822,-963.0,9.041e-05,2]
[347741110,1736088657831,-556.77,9.041e-05,2]
[347741111,1736088657841,-965.51,9.041e-05,2]
[347741112,1736088657850,-500.0,9.041e-05,2]
[347741113,1736088657860,-632.25,9.041e-05,2]
[347741114,1736088657869,-574.84,9.041e-05,2]
[347741115,1736088657878,-1412.85,9.041e-05,2]
[347741116,1736088657887,-1091.32,9.041e-05,2]
[347741117,1736088657896,-632.28876894,9.041e-05,2]
[347741118,1736088657905,-500.0,9.041e-05,2]
[347741119,1736088657914,-718.45,9.041e-05,2]
[347741120,1736088657925,-1417.04,9.041e-05,2]
[347741121,1736088657934,-500.0,9.041e-05,2]
[347741122,1736088657943,-500.0,9.041e-05,2]
[347741123,1736088657954,-968.22,9.041e-05,2]
[347741124,1736088657964,-555.72,9.041e-05,2]
[347741125,1736088657973,-500.0,9.041e-05,2]
[347741126,1736088657982,-500.0,9.041e-05,2]
[347741127,1736088657991,-605.84,9.041e-05,2]
[347741128,1736088658000,-596.18,9.041e-05,2]
[347741129,1736088658009,-500.0,9.041e-05,2]
[347741130,1736088658018,-610.95,9.041e-05,2]
[347741131,1736088658027,-625.16,9.041e-05,2]
[347741132,1736088658037,-1014.88,9.041e-05,2]
[347741133,1736088658046,-1217.16,9.041e-05,2]
[347741134,1736088658056,-764.25,9.041e-05,2]
[347741135,1736088658065,-500.0,9.041e-05,2]
[347741136,1736088658074,-1217.16,9.041e-05,2]
[347741137,1736088658083,-508.56,9.041e-05,2]
[347741138,1736088658092,-584.52860194,9.041e-05,2]
[347741139,1736088658102,-545.42,9.041e-05,2]
[347741140,1736088658112,-1097.3,9.041e-05,2]
[347741141,1736088658121,-768.49,9.041e-05,2]
[347741142,1736088658130,-500.0,9.041e-05,2]
[347741143,1736088658139,-500.0,9.041e-05,2]
[347741144,1736088658149,-563.59,9.041e-05,2]
[347741145,1736088658158,-763.9,9.041e-05,2]
[347741146,1736088658168,-500.0,9.041e-05,2]
[347741147,1736088658177,-566.7,9.041e-05,2]
[347741148,1736088658187,-500.0,9.041e-05,2]
[347741149,1736088658195,-614.33,9.041e-05,2]
[347741150,1736088658206,-500.0,9.041e-05,2]
[347741151,1736088658216,-1046.03,9.041e-05,2]
[347741152,1736088658225,-736.4,9.041e-05,2]
[347741153,1736088658235,-500.0,9.041e-05,2]
[347741154,1736088658244,-500.0,9.041e-05,2]
[347741155,1736088658254,-500.0,9.041e-05,2]
[347741156,1736088658264,-500.0,9.041e-05,2]
[347741157,1736088658273,-527.49,9.041e-05,2]
[347741158,1736088658283,-3361.51,9.041e-05,2]
[347741159,1736088658292,-938.52,9.041e-05,2]
[347741160,1736088658302,-500.0,9.041e-05,2]
[347741161,1736088658312,-500.0,9.041e-05,2]
[347741162,1736088658322,-881.7,9.041e-05,2]
[347741163,1736088658331,-500.0,9.041e-05,2]
[347741164,1736088658342,-3473.0,9.041e-05,2]
[347741165,1736088658351,-500.0,9.041e-05,2]
[347741166,1736088658363,-724.35,9.041e-05,2]
[347741167,1736088658375,-500.0,9.041e-05,2]
[347741168,1736088658386,-500.0,9.041e-05,2]
[347741169,1736088658396,-500.0,9.041e-05,2]
[347741170,1736088658406,-676.76,9.041e-05,2]
[347741171,1736088658417,-500.0,9.041e-05,2]
[347741172,1736088658427,-327.41908749,9.041e-05,2]
[347741173,1736088658437,-500.0,9.041e-05,2]
[347741174,1736088658449,-500.0,9.041e-05,2]
[347741175,1736088658459,-500.0,9.041e-05,2]
[347741176,1736088658470,-1832.31,9.041e-05,2]
[347741177,1736088658480,-572.37,9.041e-05,2]
[347741178,1736088658490,-500.0,9.041e-05,2]
[347741179,1736088658500,-500.0,9.041e-05,2]
[347741180,1736088658510,-500.0,9.041e-05,2]
[347741181,1736088658520,-500.0,9.041e-05,2]
[347741182,1736088658530,-526.4,9.041e-05,2]
[347741183,1736088658540,-500.0,9.041e-05,2]
[347741184,1736088658550,-919.97,9.041e-05,2]
[347741185,1736088658560,-2039.82,9.041e-05,2]
[347741186,1736088658570,-802.66,9.041e-05,2]
[347741187,1736088658580,-500.0,9.041e-05,2]
[347741188,1736088658590,-2561.32,9.041e-05,2]
[347741189,1736088658600,-739.71,9.041e-05,2]
[347741190,1736088658610,-558.45,9.041e-05,2]
[347741191,1736088658620,-500.0,9.041e-05,2]
[347741192,1736088658631,-500.0,9.041e-05,2]
[347741193,1736088658641,-500.0,9.041e-05,2]
[347741194,1736088658651,-2547.77,9.041e-05,2]
[347741195,1736088658661,-500.0,9.041e-05,2]
[347741196,1736088658670,-628.11,9.041e-05,2]
[347741197,1736088658678,-755.79,9.041e-05,2]
[347741198,1736088658688,-500.0,9.041e-05,2]
[347741199,1736088658697,-1678.51,9.041e-05,2]
[347741200,1736088658708,-500.0,9.041e-05,2]
[347741201,1736088658718,-637.32,9.041e-05,2]
[347741202,1736088658728,-500.0,9.041e-05,2]
[347741203,1736088658738,-1939.56,9.041e-05,2]
[347741204,1736088658748,-500.0,9.041e-05,2]
[347741205,1736088658758,-967.35,9.041e-05,2]
[347741206,1736088658769,-2938.08,9.041e-05,2]
[347741207,1736088658779,-500.0,9.041e-05,2]
[347741208,1736088658789,-1484.18,9.041e-05,2]
[347741209,1736088658799,-575.66,9.041e-05,2]
[347741210,1736088658808,-527.8,9.041e-05,2]
[347741211,1736088658818,-737.38,9.041e-05,2]
[347741212,1736088658828,-7180.0,9.041e-05,2]
[347741213,1736088658838,-500.0,9.041e-05,2]
[347741214,1736088658849,-4188.92,9.041e-05,2]
[347741215,1736088658859,-500.0,9.041e-05,2]
[347741216,1736088658869,-500.0,9.041e-05,2]
[347741217,1736088658879,-500.0,9.041e-05,2]
[347741218,1736088658889,-865.87,9.041e-05,2]
[347741219,1736088658900,-500.0,9.041e-05,2]
[347741220,1736088658909,-699.37,9.041e-05,2]
[347741221,1736088658920,-500.0,9.041e-05,2]
[347741222,1736088658928,-944.8,9.041e-05,2]
[347741223,1736088658939,-1392.46,9.041e-05,2]
[347741224,1736088658951,-500.0,9.041e-05,2]
[347741225,1736088658961,-1443.92,9.041e-05,2]
[347741226,1736088658972,-2079.08,9.041e-05,2]
[347741227,1736088658982,-795.66,9.041e-05,2]
[347741228,1736088658994,-1036.34,9.041e-05,2]
[347741229,1736088659003,-500.0,9.041e-05,2]
[347741230,1736088659013,-5368.55,9.041e-05,2]
[347741231,1736088659024,-1450.42,9.041e-05,2]
[347741232,1736088659035,-500.0,9.041e-05,2]
[347741233,1736088659046,-500.0,9.041e-05,2]
[347741234,1736088659056,-700.3,9.041e-05,2]
[347741235,1736088659068,-2917.33,9.041e-05,2]
[347741236,1736088659079,-1779.94,9.041e-05,2]
[347741237,1736088659091,-1408.14,9.041e-05,2]
[347741238,1736088659100,-500.0,9.041e-05,2]
[347741239,1736088659111,-500.0,9.041e-05,2]
[347741240,1736088659120,-500.0,9.041e-05,2]
[347741241,1736088659131,-500.0,9.041e-05,2]
[347741242,1736088659140,-889.13,9.041e-05,2]
[347741243,1736088659150,-1210.96,9.041e-05,2]
[347741244,1736088659160,-672.79,9.041e-05,2]
[347741245,1736088659170,-500.0,9.041e-05,2]
[347741246,1736088659179,-500.0,9.041e-05,2]
[347741247,1736088659189,-2270.88,9.041e-05,2]
[347741248,1736088659198,-1099.21,9.041e-05,2]
[347741249,1736088659208,-500.0,9.041e-05,2]
[347741250,1736088659219,-500.0,9.041e-05,2]
[347741251,1736088659229,-500.0,9.041e-05,2]
[347741252,1736088659239,-5212.5,9.041e-05,2]
[347741253,1736088659249,-3236.26,9.041e-05,2]
[347741254,1736088659260,-500.0,9.041e-05,2]
[347741255,1736088659271,-1556.79,9.041e-05,2]
[347741256,1736088659282,-500.0,9.041e-05,2]
[347741257,1736088659292,-756.09,9.041e-05,2]
[347741258,1736088659302,-500.0,9.041e-05,2]
[347741259,1736088659312,-1042.74,9.041e-05,2]
[347741260,1736088659323,-500.0,9.041e-05,2]
[347741261,1736088659333,-500.0,9.041e-05,2]
[347741262,1736088659343,-4849.9,9.041e-05,2]
[347741263,1736088659353,-500.0,9.041e-05,2]
[347741264,1736088659364,-1032.58,9.041e-05,2]
[347741265,1736088659377,-500.0,9.041e-05,2]
[347741266,1736088659387,-500.0,9.041e-05,2]
[347741267,1736088659396,-704.61,9.041e-05,2]
[347741268,1736088659407,-1168.67,9.041e-05,2]
[347741269,1736088659417,-534.28,9.041e-05,2]
[347741270,1736088659427,-2585.05,9.041e-05,2]
[347741271,1736088659438,-500.0,9.041e-05,2]
[347741272,1736088659448,-1062.79,9.041e-05,2]
[347741273,1736088659459,-500.0,9.041e-05,2]
[347741274,1736088659468,-585.25,9.041e-05,2]
[347741275,1736088659478,-1111.51,9.041e-05,2]
[347741276,1736088659488,-500.0,9.041e-05,2]
[347741277,1736088659499,-2756.73,9.041e-05,2]
[347741278,1736088659509,-3895.35,9.041e-05,2]
[347741279,1736088659519,-868.14,9.041e-05,2]
[347741280,1736088659529,-665.5,9.041e-05,2]
[347741281,1736088659539,-582.66,9.041e-05,2]
[347741282,1736088659549,-904.94,9.041e-05,2]
[347741283,1736088659559,-625.3,9.041e-05,2]
[347741284,1736088659569,-1046.44,9.041e-05,2]
[347741285,1736088659580,-4117.25,9.041e-05,2]
[347741286,1736088659589,-500.0,9.041e-05,2]
[347741287,1736088659599,-636.5,9.041e-05,2]
[347741288,1736088659608,-862.48,9.041e-05,2]
[347741289,1736088659617,-790.34,9.041e-05,2]
[347741290,1736088659626,-500.0,9.041e-05,2]
[347741291,1736088659636,-2398.78,9.041e-05,2]
[347741292,1736088659646,-2131.31,9.041e-05,2]
[347741293,1736088659655,-971.41,9.041e-05,2]
[347741294,1736088659665,-2160.48,9.041e-05,2]
[347741295,1736088659674,-500.0,9.041e-05,2]
[347741296,1736088659684,-500.0,9.041e-05,2]
[347741297,1736088659694,-500.0,9.041e-05,2]
[347741298,1736088659704,-2020.06,9.041e-05,2]
[347741299,1736088659714,-697.71,9.041e-05,2]
[347741300,1736088659724,-500.0,9.041e-05,2]
[347741301,1736088659734,-837.45,9.041e-05,2]
[347741302,1736088659744,-1341.14,9.041e-05,2]
[347741303,1736088659755,-1143.01,9.041e-05,2]
[347741304,1736088659765,-656.43,9.041e-05,2]
[347741305,1736088659776,-500.0,9.041e-05,2]
[347741306,1736088659786,-500.0,9.041e-05,2]
[347741307,1736088659796,-1667.39,9.041e-05,2]
[347741308,1736088659806,-500.0,9.041e-05,2]
[347741309,1736088659815,-500.88,9.041e-05,2]
[347741310,1736088659826,-500.0,9.041e-05,2]
[347741311,1736088659837,-531.88,9.041e-05,2]
[347741312,1736088659847,-500.0,9.041e-05,2]
[347741313,1736088659856,-4384.56,9.041e-05,2]
[347741314,1736088659866,-500.0,9.041e-05,2]
[347741315,1736088659876,-1109.43,9.041e-05,2]
[347741316,1736088659886,-679.54,9.041e-05,2]
[347741317,1736088659896,-500.0,9.041e-05,2]
[347741318,1736088659905,-500.0,9.041e-05,2]
[347741319,1736088659916,-818.99,9.041e-05,2]
[347741320,1736088659926,-1244.62,9.041e-05,2]
[347741321,1736088659936,-714.74,9.041e-05,2]
[347741322,1736088659945,-582.89,9.041e-05,2]
[347741323,1736088659956,-1010.03,9.041e-05,2]
[347741324,1736088659966,-500.0,9.041e-05,2]
[347741325,1736088659975,-537.31,9.041e-05,2]
[347741326,1736088659985,-4247.44,9.041e-05,2]
[347741327,1736088659995,-500.0,9.041e-05,2]
[347741328,1736088660004,-1877.91,9.041e-05,2]
[347741329,1736088660015,-500.0,9.041e-05,2]
[347741330,1736088660025,-1289.27,9.041e-05,2]
[347741331,1736088660035,-771.33,9.041e-05,2]
[347741332,1736088660045,-633.32,9.041e-05,2]
[347741333,1736088660055,-500.0,9.041e-05,2]
[347741334,1736088660065,-881.19,9.041e-05,2]
[347741335,1736088660075,-1415.78,9.041e-05,2]
[347741336,1736088660085,-1161.48,9.041e-05,2]
[347741337,1736088660095,-500.0,9.041e-05,2]
[347741338,1736088660104,-3403.52,9.041e-05,2]
[347741339,1736088660114,-500.0,9.041e-05,2]
[347741340,1736088660123,-878.66,9.041e-05,2]
[347741341,1736088660132,-553.24,9.041e-05,2]
[347741342,1736088660143,-654.57,9.041e-05,2]
[347741343,1736088660153,-500.0,9.041e-05,2]
[347741344,1736088660162,-662.97,9.041e-05,2]
[347741345,1736088660173,-1073.67,9.041e-05,2]
[347741346,1736088660183,-1284.56,9.041e-05,2]
[347741347,1736088660193,-510.2,9.041e-05,2]
[347741348,1736088660204,-623.32,9.041e-05,2]
[347741349,1736088660214,-228.07,9.041e-05,2]
[347741350,1736088660224,-2312.26,9.041e-05,2]
[347741351,1736088660234,-500.0,9.041e-05,2]
[347741352,1736088660244,-1009.54,9.041e-05,2]
[347741353,1736088660255,-1022.52,9.041e-05,2]
[347741354,1736088660266,-500.0,9.041e-05,2]
[347741355,1736088660277,-746.31,9.041e-05,2]
[347741356,1736088660287,-2040.99,9.041e-05,2]
[347741357,1736088660297,-594.54,9.041e-05,2]
[347741358,1736088660307,-549.79,9.041e-05,2]
[347741359,1736088660317,-733.22,9.041e-05,2]
[347741360,1736088660327,-920.55,9.041e-05,2]
[347741361,1736088660337,-1032.33,9.041e-05,2]
[347741362,1736088660347,-2359.74,9.041e-05,2]
[347741363,1736088660357,-200.0,9.041e-05,2]
[347741364,1736088660367,-1400.0,9.072e-05,2]
[347741365,1736088660382,-500.0,9.072e-05,2]
[347741366,1736088660392,-150.0,9.142e-05,2]
[347741367,1736088660402,-712.212,9.166e-05,2]
[347741368,1736088660414,-566.0,9.166e-05,2]
[347741369,1736088660424,-1860.0,9.166e-05,2]
[347741370,1736088660434,-1254.471,9.166e-05,2]
[347741371,1736088660444,-814.0,9.166e-05,2]
[347741372,1736088660457,-1173.0,9.166e-05,2]
[347741373,1736088660467,-150.0,9.166e-05,2]
[347741374,1736088660477,-1000.0,9.247e-05,2]
[347741375,1736088660487,-26127.2236616,9.283e-05,2]
[347741376,1736088660498,-926.0,9.296e-05,2]
[347741377,1736088660509,-150.0,9.308e-05,2]
[347741378,1736088660778,-500.0,9.314e-05,2]
[347741379,1736088660799,-575.92,9.314e-05,2]
[347741380,1736088660808,-677.14,9.314e-05,2]
[347741381,1736088660819,-500.0,9.314e-05,2]
[347741382,1736088660828,-1275.61,9.314e-05,2]
[347741383,1736088660839,-156.503976,9.315e-05,2]
[347741384,1736088660848,-158.748276,9.315e-05,2]
[347741385,1736088660857,-500.0,9.315e-05,2]
[347741386,1736088660868,-500.0,9.315e-05,2]
[347741387,1736088660877,-500.0,9.315e-05,2]
[347741388,1736088660886,-760.43,9.315e-05,2]
[347741389,1736088660896,-500.0,9.315e-05,2]
[347741390,1736088660906,-705.02,9.315e-05,2]
[347741391,1736088660918,-552.44,9.315e-05,2]
[347741392,1736088660928,-1434.98,9.315e-05,2]
[347741393,1736088660938,-500.0,9.315e-05,2]
[347741394,1736088660948,-500.0,9.315e-05,2]
[347741395,1736088660960,-500.0,9.315e-05,2]
[347741396,1736088660969,-500.0,9.315e-05,2]
[347741397,1736088660979,-2144.39,9.315e-05,2]
[347741398,1736088660989,-570.39,9.315e-05,2]
[347741399,1736088660999,-500.0,9.315e-05,2]
[347741400,1736088661009,-1799.96,9.315e-05,2]
[347741401,1736088661018,-500.0,9.315e-05,2]
[347741402,1736088661028,-2272.66,9.315e-05,2]
[347741403,1736088661038,-500.0,9.315e-05,2]
[347741404,1736088661049,-500.0,9.315e-05,2]
[347741405,1736088661064,-500.0,9.315e-05,2]
[347741406,1736088661079,-675.29,9.315e-05,2]
[347741407,1736088661089,-500.0,9.315e-05,2]
[347741408,1736088661099,-700.21,9.315e-05,2]
[347741409,1736088661108,-500.0,9.315e-05,2]
[347741410,1736088661117,-671.03,9.315e-05,2]
[347741411,1736088661127,-500.0,9.315e-05,2]
[347741412,1736088661136,-416.57,9.315e-05,2]
[347741413,1736088661146,-3594.34,9.315e-05,2]
[347741414,1736088661155,-500.0,9.315e-05,2]
[347741415,1736088661165,-500.0,9.315e-05,2]
[347741416,1736088661175,-684.64,9.315e-05,2]
[347741417,1736088661185,-500.0,9.315e-05,2]
[347741418,1736088661195,-655.72,9.315e-05,2]
[347741419,1736088661206,-500.0,9.315e-05,2]
[347741420,1736088661216,-500.0,9.315e-05,2]
[347741421,1736088661226,-500.0,9.315e-05,2]
[347741422,1736088661236,-500.0,9.315e-05,2]
[347741423,1736088661245,-1298.03,9.315e-05,2]
[347741424,1736088661254,-1098.47,9.315e-05,2]
[347741425,1736088661263,-573.63,9.315e-05,2]
[347741426,1736088661273,-2405.5,9.315e-05,2]
[347741427,1736088661283,-500.0,9.315e-05,2]
[347741428,1736088661293,-500.0,9.315e-05,2]
[347741429,1736088661303,-1388.66,9.315e-05,2]
[347741430,1736088661312,-500.0,9.315e-05,2]
[347741431,1736088661321,-500.0,9.315e-05,2]
[347741432,1736088661331,-585.5,9.315e-05,2]
[347741433,1736088661341,-1290.85,9.315e-05,2]
[347741434,1736088661351,-594.04,9.315e-05,2]
[347741435,1736088661361,-743.07,9.315e-05,2]
[347741436,1736088661373,-500.0,9.315e-05,2]
[347741437,1736088661387,-1013.41,9.315e-05,2]
[347741438,1736088661397,-500.0,9.315e-05,2]
[347741439,1736088661407,-735.81,9.315e-05,2]
[347741440,1736088661416,-500.0,9.315e-05,2]
[347741441,1736088661426,-500.0,9.315e-05,2]
[347741442,1736088661437,-500.0,9.315e-05,2]
[347741443,1736088661447,-584.3,9.315e-05,2]
[347741444,1736088661458,-2077.18,9.315e-05,2]
[347741445,1736088661467,-1447.55,9.315e-05,2]
[347741446,1736088661477,-500.0,9.315e-05,2]
[347741447,1736088661486,-6663.09,9.315e-05,2]
[347741448,1736088661495,-857.37,9.315e-05,2]
[347741449,1736088661505,-2919.98,9.315e-05,2]
[347741450,1736088661514,-500.0,9.315e-05,2]
[347741451,1736088661523,-500.0,9.315e-05,2]
[347741452,1736088661534,-514.57,9.315e-05,2]
[347741453,1736088661544,-500.0,9.315e-05,2]
[347741454,1736088661554,-500.0,9.315e-05,2]
[347741455,1736088661565,-518.87,9.315e-05,2]
[347741456,1736088661574,-500.0,9.315e-05,2]
[347741457,1736088661584,-3877.66,9.315e-05,2]
[347741458,1736088661593,-625.05,9.315e-05,2]
[347741459,1736088661603,-500.0,9.315e-05,2]
[347741460,1736088661612,-500.0,9.315e-05,2]
[347741461,1736088661621,-500.0,9.315e-05,2]
[347741462,1736088661630,-507.07,9.315e-05,2]
[347741463,1736088661640,-500.0,9.315e-05,2]
[347741464,1736088661650,-540.94,9.315e-05,2]
[347741465,1736088661659,-500.0,9.315e-05,2]
[347741466,1736088661669,-500.0,9.315e-05,2]
[347741467,1736088661678,-744.03,9.315e-05,2]
[347741468,1736088661688,-918.85,9.315e-05,2]
[347741469,1736088661698,-500.0,9.315e-05,2]
[347741470,1736088661712,-703.9,9.315e-05,2]
[347741471,1736088661724,-500.0,9.315e-05,2]
[347741472,1736088661734,-707.26,9.315e-05,2]
[347741473,1736088661744,-535.44,9.315e-05,2]
[347741474,1736088661755,-805.02,9.315e-05,2]
[347741475,1736088661766,-1422.38,9.315e-05,2]
[347741476,1736088661776,-500.0,9.315e-05,2]
[347741477,1736088661788,-500.0,9.315e-05,2]
[347741478,1736088661799,-879.47,9.315e-05,2]
[347741479,1736088661810,-559.6,9.315e-05,2]
[347741480,1736088661820,-500.0,9.315e-05,2]
[347741481,1736088661831,-629.53,9.315e-05,2]
[347741482,1736088661841,-500.0,9.315e-05,2]
[347741483,1736088661851,-536.5,9.315e-05,2]
[347741484,1736088661862,-943.81,9.315e-05,2]
[347741485,1736088661871,-500.0,9.315e-05,2]
[347741486,1736088661881,-854.59,9.315e-05,2]
[347741487,1736088661891,-685.17,9.315e-05,2]
[347741488,1736088661901,-500.0,9.315e-05,2]
[347741489,1736088661911,-500.0,9.315e-05,2]
[347741490,1736088661921,-279.05658229,9.315e-05,2]
[347741491,1736088661931,-500.0,9.315e-05,2]
[347741492,1736088661941,-500.0,9.315e-05,2]
[347741493,1736088661951,-500.0,9.315e-05,2]
[347741494,1736088661965,-1673.43,9.315e-05,2]
[347741495,1736088661974,-1008.09,9.315e-05,2]
[347741496,1736088661984,-500.0,9.315e-05,2]
[347741497,1736088661995,-500.0,9.315e-05,2]
[347741498,1736088662004,-1008.87,9.315e-05,2]
[347741499,1736088662014,-519.54,9.315e-05,2]
[347741500,1736088662024,-822.67,9.315e-05,2]
[347741501,1736088662033,-500.0,9.315e-05,2]
[347741502,1736088662043,-552.41,9.315e-05,2]
[347741503,1736088662052,-500.0,9.315e-05,2]
[347741504,1736088662062,-578.84,9.315e-05,2]
[347741505,1736088662071,-588.95,9.315e-05,2]
[347741506,1736088662081,-656.59,9.315e-05,2]
[347741507,1736088662091,-4601.41,9.315e-05,2]
[347741508,1736088662101,-860.4,9.315e-05,2]
[347741509,1736088662111,-810.01,9.315e-05,2]
[347741510,1736088662121,-500.0,9.315e-05,2]
[347741511,1736088662131,-798.87,9.315e-05,2]
[347741512,1736088662140,-558.05,9.315e-05,2]
[347741513,1736088662150,-1037.16,9.315e-05,2]
[347741514,1736088662160,-500.0,9.315e-05,2]
[347741515,1736088662170,-500.0,9.315e-05,2]
[347741516,1736088662179,-798.02,9.315e-05,2]
[347741517,1736088662189,-500.0,9.315e-05,2]
[347741518,1736088662199,-500.0,9.315e-05,2]
[347741519,1736088662211,-500.0,9.315e-05,2]
[347741520,1736088662221,-626.85,9.315e-05,2]
[347741521,1736088662230,-920.34,9.315e-05,2]
[347741522,1736088662240,-500.0,9.315e-05,2]
[347741523,1736088662250,-734.38,9.315e-05,2]
[347741524,1736088662260,-2241.04,9.315e-05,2]
[347741525,1736088662270,-500.0,9.315e-05,2]
[347741526,1736088662280,-560.28,9.315e-05,2]
[347741527,1736088662290,-500.0,9.315e-05,2]
[347741528,1736088662300,-500.0,9.315e-05,2]
[347741529,1736088662310,-500.0,9.315e-05,2]
[347741530,1736088662320,-500.0,9.315e-05,2]
[347741531,1736088662329,-500.0,9.315e-05,2]
[347741532,1736088662339,-814.44,9.315e-05,2]
[347741533,1736088662349,-603.48,9.315e-05,2]
[347741534,1736088662359,-686.2,9.315e-05,2]
[347741535,1736088662369,-500.0,9.315e-05,2]
[347741536,1736088662381,-504.64,9.315e-05,2]
[347741537,1736088662391,-500.0,9.315e-05,2]
[347741538,1736088662401,-598.61,9.315e-05,2]
[347741539,1736088662411,-970.15,9.315e-05,2]
[347741540,1736088662421,-500.0,9.315e-05,2]
[347741541,1736088662430,-503.0,9.315e-05,2]
[347741542,1736088662440,-598.92,9.315e-05,2]
[347741543,1736088662449,-870.34,9.315e-05,2]
[347741544,1736088662461,-561.67,9.315e-05,2]
[347741545,1736088662471,-599.13,9.315e-05,2]
[347741546,1736088662480,-577.37,9.315e-05,2]
[347741547,1736088662490,-1374.03,9.315e-05,2]
[347741548,1736088662500,-500.0,9.315e-05,2]
[347741549,1736088662509,-913.29,9.315e-05,2]
[347741550,1736088662518,-1483.17,9.315e-05,2]
[347741551,1736088662528,-607.47,9.315e-05,2]
[347741552,1736088662537,-500.0,9.315e-05,2]
[347741553,1736088662547,-500.0,9.315e-05,2]
[347741554,1736088662556,-543.44,9.315e-05,2]
[347741555,1736088662566,-1286.2,9.315e-05,2]
[347741556,1736088662575,-1384.98,9.315e-05,2]